[Event "Titled Tuesday Blitz June 13 Late 2023"]
[White "Powell, Paul"]
[Black "Kaufman, Raymond"]
[WhiteFideId "2005840"]
[BlackFideId "2015056"]
[WhiteElo "2154"]
[BlackElo "2264"]
[Result "0-1"]
[Round "6"]
[TimeControl "180+2"]
[Date "2023.06.13"]
[WhiteClock "0:00:32"]
[BlackClock "0:00:34"]
[Board "165"]

1. d4 {[%clk 0:02:59]}  d5 {[%clk 0:02:59]} 2. Nf3 {[%clk 0:02:59]}  Nf6 {[%clk 0:02:57]} 3. Bf4 {[%clk 0:02:59]}  e6 {[%clk 0:02:56]} 4. e3 {[%clk 0:02:59]}  Bd6 {[%clk 0:02:56]} 5. Ne5 {[%clk 0:02:59]}  O-O {[%clk 0:02:52]} 6. Nd2 {[%clk 0:02:59]}  Nc6 {[%clk 0:02:51]} 7. c3 {[%clk 0:02:58]}  Nd7 {[%clk 0:02:51]} 8. Nxd7 {[%clk 0:02:53]}  Bxd7 {[%clk 0:02:50]} 9. Bd3 {[%clk 0:02:53]}  h6 {[%clk 0:02:42]} 10. Qf3 {[%clk 0:02:52]}  Re8 {[%clk 0:02:27]} 11. g4 {[%clk 0:02:50]}  e5 {[%clk 0:02:23]} 12. dxe5 {[%clk 0:02:49]}  Nxe5 {[%clk 0:02:22]} 13. Bxe5 {[%clk 0:02:49]}  Rxe5 {[%clk 0:02:09]} 14. h4 {[%clk 0:02:48]}  g6 {[%clk 0:02:00]} 15. O-O-O {[%clk 0:02:45]}  c5 {[%clk 0:01:55]} 16. Qg2 {[%clk 0:02:17]}  Bc6 {[%clk 0:01:55]} 17. f4 {[%clk 0:02:11]}  Rxe3 {[%clk 0:01:48]} 18. Bc2 {[%clk 0:01:53]}  Qe7 {[%clk 0:01:41]} 19. f5 {[%clk 0:01:52]}  d4 {[%clk 0:01:38]} 20. Qf2 {[%clk 0:01:49]}  Re2 {[%clk 0:01:24]} 21. Qf1 {[%clk 0:01:45]}  Qe3 {[%clk 0:01:06]} 22. fxg6 {[%clk 0:01:41]}  Bf4 {[%clk 0:01:06]} 23. gxf7+ {[%clk 0:01:36]}  Kf8 {[%clk 0:01:05]} 24. g5 {[%clk 0:01:34]}  Rxd2 {[%clk 0:01:04]} 25. Rxd2 {[%clk 0:01:34]}  Qxd2+ {[%clk 0:01:04]} 26. Kb1 {[%clk 0:01:34]}  Bxh1 {[%clk 0:01:03]} 27. Qxh1 {[%clk 0:01:32]}  hxg5 {[%clk 0:00:57]} 28. hxg5 {[%clk 0:01:32]}  Qc1+ {[%clk 0:00:57]} 29. Qxc1 {[%clk 0:01:29]}  Bxc1 {[%clk 0:00:57]} 30. Kxc1 {[%clk 0:01:29]}  Kxf7 {[%clk 0:00:57]} 31. g6+ {[%clk 0:01:29]}  Kf6 {[%clk 0:00:52]} 32. cxd4 {[%clk 0:01:29]}  cxd4 {[%clk 0:00:53]} 33. Bd3 {[%clk 0:01:29]}  Rh8 {[%clk 0:00:43]} 34. a3 {[%clk 0:01:21]}  Rh2 {[%clk 0:00:43]} 35. a4 {[%clk 0:01:17]}  a5 {[%clk 0:00:41]} 36. b3 {[%clk 0:01:15]}  Ke5 {[%clk 0:00:40]} 37. Kd1 {[%clk 0:01:10]}  Rg2 {[%clk 0:00:38]} 38. Kc1 {[%clk 0:01:09]}  Kf4 {[%clk 0:00:38]} 39. Kd1 {[%clk 0:01:00]}  Ke3 {[%clk 0:00:37]} 40. Bf5 {[%clk 0:00:32]}  d3 {[%clk 0:00:34]} 0-1


[Site "https://www.chess.com"]

[Event "Titled Tuesday Blitz June 13 Late 2023"]
[White "Dominguez Rincon, Miller Duvan"]
[Black "Wang, Alexander J"]
[WhiteFideId "4406583"]
[BlackFideId "30955270"]
[WhiteElo "1986"]
[BlackElo "2231"]
[Result "0-1"]
[Round "6"]
[TimeControl "180+2"]
[Date "2023.06.13"]
[WhiteClock "0:00:00"]
[BlackClock "0:00:42"]
[Board "167"]

1. e4 {[%clk 0:03:00]}  c5 {[%clk 0:02:47]} 2. Nf3 {[%clk 0:02:55]}  d6 {[%clk 0:02:48]} 3. d4 {[%clk 0:02:54]}  cxd4 {[%clk 0:02:48]} 4. Nxd4 {[%clk 0:02:54]}  Nf6 {[%clk 0:02:49]} 5. Nc3 {[%clk 0:02:53]}  g6 {[%clk 0:02:50]} 6. Be3 {[%clk 0:02:51]}  Bg7 {[%clk 0:02:50]} 7. f3 {[%clk 0:02:51]}  O-O {[%clk 0:02:50]} 8. Qd2 {[%clk 0:02:50]}  Nc6 {[%clk 0:02:50]} 9. Bc4 {[%clk 0:02:50]}  Bd7 {[%clk 0:02:50]} 10. Bb3 {[%clk 0:02:50]}  Ne5 {[%clk 0:02:49]} 11. O-O-O {[%clk 0:02:49]}  Rc8 {[%clk 0:02:50]} 12. h4 {[%clk 0:02:49]}  h5 {[%clk 0:02:49]} 13. Bg5 {[%clk 0:02:46]}  Rc5 {[%clk 0:02:46]} 14. g4 {[%clk 0:02:38]}  hxg4 {[%clk 0:02:45]} 15. f4 {[%clk 0:02:38]}  Nc6 {[%clk 0:02:43]} 16. Nde2 {[%clk 0:02:24]}  Na5 {[%clk 0:02:25]} 17. e5 {[%clk 0:02:15]}  Nxb3+ {[%clk 0:02:22]} 18. axb3 {[%clk 0:02:15]}  dxe5 {[%clk 0:01:53]} 19. Bxf6 {[%clk 0:02:13]}  Bxf6 {[%clk 0:01:48]} 20. Qxd7 {[%clk 0:02:11]}  Qxd7 {[%clk 0:01:48]} 21. Rxd7 {[%clk 0:02:11]}  exf4 {[%clk 0:01:46]} 22. Ne4 {[%clk 0:01:36]}  Rf5 {[%clk 0:01:35]} 23. Nxf6+ {[%clk 0:00:56]}  exf6 {[%clk 0:01:36]} 24. Rf1 {[%clk 0:00:45]}  f3 {[%clk 0:01:31]} 25. Ng3 {[%clk 0:00:39]}  Re5 {[%clk 0:01:23]} 26. Rxb7 {[%clk 0:00:28]}  f5 {[%clk 0:01:22]} 27. Rb4 {[%clk 0:00:23]}  Rfe8 {[%clk 0:01:18]} 28. Kd2 {[%clk 0:00:20]}  Rd8+ {[%clk 0:01:15]} 29. Kc1 {[%clk 0:00:19]}  Ra5 {[%clk 0:01:02]} 30. Ra4 {[%clk 0:00:17]}  Rxa4 {[%clk 0:01:02]} 31. bxa4 {[%clk 0:00:16]}  Rd4 {[%clk 0:01:00]} 32. b3 {[%clk 0:00:13]}  f4 {[%clk 0:01:00]} 33. Nh1 {[%clk 0:00:11]}  g3 {[%clk 0:00:58]} 34. Nf2 {[%clk 0:00:09]}  gxf2 {[%clk 0:00:47]} 35. Rxf2 {[%clk 0:00:10]}  f6 {[%clk 0:00:46]} 36. Rxf3 {[%clk 0:00:10]}  g5 {[%clk 0:00:46]} 37. c3 {[%clk 0:00:05]}  Re4 {[%clk 0:00:46]} 38. Kd2 {[%clk 0:00:04]}  g4 {[%clk 0:00:45]} 39. Rf1 {[%clk 0:00:03]}  g3 {[%clk 0:00:41]} 40. Kd3 {[%clk 0:00:03]}  Re3+ {[%clk 0:00:42]} 41. Kd4 {[%clk 0:00:01]}  g2 {[%clk 0:00:42]} 42. Rg1 {[%clk 0:00:00]}  Re2 {[%clk 0:00:42]} 0-1


[Site "https://www.chess.com"]

[Event "Titled Tuesday Blitz June 13 Late 2023"]
[White "Nihal Sarin"]
[Black "Eljanov, Pavel"]
[WhiteFideId "25092340"]
[BlackFideId "14102951"]
[WhiteElo "2689"]
[BlackElo "2598"]
[Result "1-0"]
[Round "7"]
[TimeControl "180+2"]
[Date "2023.06.13"]
[WhiteClock "0:00:09"]
[BlackClock "0:00:20"]
[Board "1"]

1. e4 {[%clk 0:03:00]}  e5 {[%clk 0:02:59]} 2. Nf3 {[%clk 0:03:00]}  Nc6 {[%clk 0:03:00]} 3. Bb5 {[%clk 0:02:57]}  a6 {[%clk 0:03:00]} 4. Ba4 {[%clk 0:02:56]}  Nf6 {[%clk 0:03:00]} 5. O-O {[%clk 0:02:53]}  Be7 {[%clk 0:03:00]} 6. Re1 {[%clk 0:02:50]}  b5 {[%clk 0:03:00]} 7. Bb3 {[%clk 0:02:50]}  O-O {[%clk 0:03:00]} 8. h3 {[%clk 0:02:36]}  Bb7 {[%clk 0:02:59]} 9. d3 {[%clk 0:02:33]}  d5 {[%clk 0:02:59]} 10. exd5 {[%clk 0:02:31]}  Nxd5 {[%clk 0:03:00]} 11. Nbd2 {[%clk 0:02:31]}  Qd7 {[%clk 0:02:54]} 12. a4 {[%clk 0:02:25]}  Nf4 {[%clk 0:02:49]} 13. Ne4 {[%clk 0:02:17]}  Ng6 {[%clk 0:02:49]} 14. h4 {[%clk 0:02:08]}  Qg4 {[%clk 0:02:46]} 15. Bg5 {[%clk 0:02:07]}  Bxg5 {[%clk 0:02:44]} 16. hxg5 {[%clk 0:02:08]}  Na5 {[%clk 0:02:34]} 17. Nfd2 {[%clk 0:02:02]}  Qxd1 {[%clk 0:02:27]} 18. Raxd1 {[%clk 0:01:58]}  Nxb3 {[%clk 0:02:25]} 19. Nxb3 {[%clk 0:01:59]}  bxa4 {[%clk 0:02:25]} 20. Nbc5 {[%clk 0:01:37]}  Bc6 {[%clk 0:02:23]} 21. Nc3 {[%clk 0:01:38]}  Rab8 {[%clk 0:02:10]} 22. Rb1 {[%clk 0:01:06]}  Rb4 {[%clk 0:02:06]} 23. f3 {[%clk 0:01:01]}  a5 {[%clk 0:02:03]} 24. Na6 {[%clk 0:00:56]}  Rb6 {[%clk 0:01:57]} 25. Nc5 {[%clk 0:00:43]}  Rb4 {[%clk 0:01:57]} 26. Na6 {[%clk 0:00:43]}  Rh4 {[%clk 0:01:40]} 27. Nxc7 {[%clk 0:00:41]}  Rh5 {[%clk 0:01:36]} 28. N7d5 {[%clk 0:00:33]}  Rxg5 {[%clk 0:01:32]} 29. Kf2 {[%clk 0:00:34]}  Rd8 {[%clk 0:01:29]} 30. Ne3 {[%clk 0:00:30]}  h5 {[%clk 0:01:25]} 31. Ra1 {[%clk 0:00:30]}  h4 {[%clk 0:01:17]} 32. Nxa4 {[%clk 0:00:25]}  Nf4 {[%clk 0:01:01]} 33. Nc3 {[%clk 0:00:25]}  Rd6 {[%clk 0:00:57]} 34. Rh1 {[%clk 0:00:13]}  Rdg6 {[%clk 0:00:53]} 35. Rh2 {[%clk 0:00:13]}  h3 {[%clk 0:00:51]} 36. g4 {[%clk 0:00:13]}  Kh7 {[%clk 0:00:32]} 37. Rxa5 {[%clk 0:00:12]}  Bxf3 {[%clk 0:00:33]} 38. Kxf3 {[%clk 0:00:11]}  e4+ {[%clk 0:00:30]} 39. Kxf4 {[%clk 0:00:09]}  Rxa5 {[%clk 0:00:31]} 40. Rxh3+ {[%clk 0:00:10]}  Rh6 {[%clk 0:00:22]} 41. Rxh6+ {[%clk 0:00:10]}  Kxh6 {[%clk 0:00:20]} 42. Nxe4 {[%clk 0:00:09]} 1-0


[Site "https://www.chess.com"]

[Event "Titled Tuesday Blitz June 13 Late 2023"]
[White "Korobov, Anton"]
[Black "Sarana, Alexey"]
[WhiteFideId "14105730"]
[BlackFideId "24133795"]
[WhiteElo "2638"]
[BlackElo "2714"]
[Result "0-1"]
[Round "7"]
[TimeControl "180+2"]
[Date "2023.06.13"]
[WhiteClock "0:01:10"]
[BlackClock "0:01:15"]
[Board "2"]

1. c4 {[%clk 0:03:00]}  e6 {[%clk 0:02:59]} 2. Nf3 {[%clk 0:03:00]}  d5 {[%clk 0:03:00]} 3. g3 {[%clk 0:03:00]}  Nf6 {[%clk 0:03:00]} 4. Bg2 {[%clk 0:03:00]}  Be7 {[%clk 0:02:56]} 5. O-O {[%clk 0:03:00]}  O-O {[%clk 0:02:57]} 6. b3 {[%clk 0:02:54]}  b6 {[%clk 0:02:55]} 7. Bb2 {[%clk 0:02:49]}  Bb7 {[%clk 0:02:54]} 8. e3 {[%clk 0:02:49]}  c5 {[%clk 0:02:50]} 9. Qe2 {[%clk 0:02:44]}  Nc6 {[%clk 0:02:49]} 10. d3 {[%clk 0:02:39]}  Qd7 {[%clk 0:02:44]} 11. Ne1 {[%clk 0:02:30]}  Rad8 {[%clk 0:02:44]} 12. f4 {[%clk 0:02:29]}  Ne8 {[%clk 0:02:09]} 13. Nd2 {[%clk 0:02:20]}  Bf6 {[%clk 0:02:08]} 14. Bxf6 {[%clk 0:02:20]}  Nxf6 {[%clk 0:02:09]} 15. g4 {[%clk 0:02:11]}  dxc4 {[%clk 0:02:07]} 16. bxc4 {[%clk 0:02:11]}  Nb4 {[%clk 0:02:02]} 17. Bxb7 {[%clk 0:02:10]}  Qxb7 {[%clk 0:02:02]} 18. a3 {[%clk 0:02:11]}  Nxd3 {[%clk 0:01:43]} 19. Nxd3 {[%clk 0:02:10]}  Qd7 {[%clk 0:01:44]} 20. Ne5 {[%clk 0:01:54]}  Qxd2 {[%clk 0:01:43]} 21. Ra2 {[%clk 0:01:54]}  Qxe2 {[%clk 0:01:40]} 22. Rxe2 {[%clk 0:01:55]}  Ne4 {[%clk 0:01:40]} 23. f5 {[%clk 0:01:41]}  exf5 {[%clk 0:01:39]} 24. Rxf5 {[%clk 0:01:37]}  Rfe8 {[%clk 0:01:26]} 25. Nc6 {[%clk 0:01:27]}  Rd7 {[%clk 0:01:21]} 26. Rd5 {[%clk 0:01:25]}  Rc7 {[%clk 0:01:15]} 27. Nd8 {[%clk 0:01:10]}  Nc3 {[%clk 0:01:15]} 0-1


[Site "https://www.chess.com"]

[Event "Titled Tuesday Blitz June 13 Late 2023"]
[White "Xiong, Jeffery"]
[Black "Aravindh, Chithambaram VR."]
[WhiteFideId "2047640"]
[BlackFideId "5072786"]
[WhiteElo "2726"]
[BlackElo "2596"]
[Result "1/2-1/2"]
[Round "7"]
[TimeControl "180+2"]
[Date "2023.06.13"]
[WhiteClock "0:01:39"]
[BlackClock "0:00:39"]
[Board "3"]

1. e4 {[%clk 0:03:00]}  c6 {[%clk 0:03:00]} 2. Nf3 {[%clk 0:03:01]}  d5 {[%clk 0:03:00]} 3. d3 {[%clk 0:03:01]}  dxe4 {[%clk 0:02:58]} 4. dxe4 {[%clk 0:03:02]}  Qxd1+ {[%clk 0:02:58]} 5. Kxd1 {[%clk 0:03:03]}  Nf6 {[%clk 0:02:56]} 6. Nfd2 {[%clk 0:03:03]}  g6 {[%clk 0:02:54]} 7. f3 {[%clk 0:03:03]}  Bh6 {[%clk 0:02:52]} 8. a4 {[%clk 0:02:58]}  O-O {[%clk 0:02:50]} 9. c3 {[%clk 0:02:55]}  Be6 {[%clk 0:02:42]} 10. Kc2 {[%clk 0:02:54]}  Rd8 {[%clk 0:02:34]} 11. Na3 {[%clk 0:02:51]}  Nbd7 {[%clk 0:02:28]} 12. Bc4 {[%clk 0:02:51]}  Nc5 {[%clk 0:02:17]} 13. Nb3 {[%clk 0:02:23]}  Nxb3 {[%clk 0:02:06]} 14. Kxb3 {[%clk 0:02:19]}  Bxc1 {[%clk 0:01:58]} 15. Raxc1 {[%clk 0:02:19]}  Bxc4+ {[%clk 0:01:55]} 16. Nxc4 {[%clk 0:02:20]}  Nd7 {[%clk 0:01:55]} 17. a5 {[%clk 0:02:07]}  b5 {[%clk 0:01:55]} 18. axb6 {[%clk 0:02:06]}  axb6 {[%clk 0:01:56]} 19. Ra1 {[%clk 0:02:04]}  b5 {[%clk 0:01:49]} 20. Na5 {[%clk 0:02:03]}  Ne5 {[%clk 0:01:21]} 21. Kc2 {[%clk 0:02:03]}  g5 {[%clk 0:01:12]} 22. Nb7 {[%clk 0:02:02]}  Rdb8 {[%clk 0:01:06]} 23. Nc5 {[%clk 0:02:01]}  Kg7 {[%clk 0:01:03]} 24. b3 {[%clk 0:01:54]}  Rd8 {[%clk 0:00:58]} 25. Nb7 {[%clk 0:01:54]}  Rdb8 {[%clk 0:00:57]} 26. Nc5 {[%clk 0:01:54]}  Rd8 {[%clk 0:00:57]} 27. Nb7 {[%clk 0:01:40]}  Rg8 {[%clk 0:00:52]} 28. Nc5 {[%clk 0:01:39]}  Rgd8 {[%clk 0:00:39]} 1/2-1/2


[Site "https://www.chess.com"]

[Event "Titled Tuesday Blitz June 13 Late 2023"]
[White "Kovalev, Vladislav"]
[Black "Nakamura, Hikaru"]
[WhiteFideId "13504398"]
[BlackFideId "2016192"]
[WhiteElo "2555"]
[BlackElo "2874"]
[Result "1-0"]
[Round "7"]
[TimeControl "180+2"]
[Date "2023.06.13"]
[WhiteClock "0:00:13"]
[BlackClock "0:01:46"]
[Board "4"]

1. e4 {[%clk 0:03:00]}  c5 {[%clk 0:02:59]} 2. Nf3 {[%clk 0:03:01]}  Nc6 {[%clk 0:02:55]} 3. Bb5 {[%clk 0:03:00]}  g6 {[%clk 0:02:55]} 4. O-O {[%clk 0:03:00]}  Bg7 {[%clk 0:02:56]} 5. c3 {[%clk 0:03:01]}  Nf6 {[%clk 0:02:52]} 6. Re1 {[%clk 0:02:59]}  O-O {[%clk 0:02:50]} 7. d4 {[%clk 0:02:59]}  Qb6 {[%clk 0:02:51]} 8. Na3 {[%clk 0:02:31]}  cxd4 {[%clk 0:02:49]} 9. cxd4 {[%clk 0:02:29]}  d5 {[%clk 0:02:49]} 10. e5 {[%clk 0:02:20]}  Ne4 {[%clk 0:02:48]} 11. h3 {[%clk 0:02:14]}  f6 {[%clk 0:02:42]} 12. exf6 {[%clk 0:02:05]}  exf6 {[%clk 0:02:39]} 13. Qb3 {[%clk 0:01:59]}  Qd8 {[%clk 0:02:39]} 14. Bxc6 {[%clk 0:01:54]}  bxc6 {[%clk 0:02:38]} 15. Rxe4 {[%clk 0:01:53]}  Rb8 {[%clk 0:02:38]} 16. Qxb8 {[%clk 0:01:52]}  dxe4 {[%clk 0:02:39]} 17. Ne1 {[%clk 0:01:39]}  Qxd4 {[%clk 0:02:37]} 18. Be3 {[%clk 0:01:39]}  Qd5 {[%clk 0:02:37]} 19. Qb3 {[%clk 0:01:05]}  f5 {[%clk 0:02:36]} 20. Rd1 {[%clk 0:01:05]}  Qxb3 {[%clk 0:02:31]} 21. axb3 {[%clk 0:01:05]}  Bxb2 {[%clk 0:02:31]} 22. Nc4 {[%clk 0:01:05]}  Bf6 {[%clk 0:02:31]} 23. Bxa7 {[%clk 0:01:03]}  Be6 {[%clk 0:02:31]} 24. Nc2 {[%clk 0:01:00]}  Ra8 {[%clk 0:02:29]} 25. Bd4 {[%clk 0:00:39]}  Be7 {[%clk 0:02:16]} 26. Ra1 {[%clk 0:00:34]}  Rb8 {[%clk 0:02:16]} 27. Na5 {[%clk 0:00:29]}  Rc8 {[%clk 0:02:06]} 28. Ne3 {[%clk 0:00:25]}  f4 {[%clk 0:01:56]} 29. Nec4 {[%clk 0:00:25]}  c5 {[%clk 0:01:55]} 30. Be5 {[%clk 0:00:26]}  g5 {[%clk 0:01:55]} 31. Nb7 {[%clk 0:00:24]}  h6 {[%clk 0:01:47]} 32. Nbd6 {[%clk 0:00:24]}  Rd8 {[%clk 0:01:47]} 33. Nxe4 {[%clk 0:00:23]}  Rd3 {[%clk 0:01:46]} 34. Ra7 {[%clk 0:00:21]}  Kf8 {[%clk 0:01:46]} 35. Bg7+ {[%clk 0:00:12]}  Ke8 {[%clk 0:01:47]} 36. Bxh6 {[%clk 0:00:12]}  Rxb3 {[%clk 0:01:46]} 37. Ncd6+ {[%clk 0:00:12]}  Kd8 {[%clk 0:01:47]} 38. Bxg5 {[%clk 0:00:12]}  Bxg5 {[%clk 0:01:46]} 39. Nxg5 {[%clk 0:00:13]}  Bd5 {[%clk 0:01:47]} 40. Ngf7+ {[%clk 0:00:13]}  Bxf7 {[%clk 0:01:47]} 41. Nxf7+ {[%clk 0:00:14]}  Kc8 {[%clk 0:01:48]} 42. Nd6+ {[%clk 0:00:14]}  Kd8 {[%clk 0:01:48]} 43. Nb7+ {[%clk 0:00:12]}  Ke8 {[%clk 0:01:46]} 44. Nxc5 {[%clk 0:00:13]} 1-0


[Site "https://www.chess.com"]

[Event "Titled Tuesday Blitz June 13 Late 2023"]
[White "Jumabayev, Rinat"]
[Black "Duda, Jan-Krzysztof"]
[WhiteFideId "13702661"]
[BlackFideId "1170546"]
[WhiteElo "2561"]
[BlackElo "2783"]
[Result "0-1"]
[Round "7"]
[TimeControl "180+2"]
[Date "2023.06.13"]
[WhiteClock "0:00:00"]
[BlackClock "0:01:20"]
[Board "6"]

1. d4 {[%clk 0:03:00]}  Nf6 {[%clk 0:03:00]} 2. Nf3 {[%clk 0:03:00]}  e6 {[%clk 0:03:00]} 3. c4 {[%clk 0:03:00]}  d5 {[%clk 0:03:00]} 4. g3 {[%clk 0:03:00]}  Bb4+ {[%clk 0:02:59]} 5. Nbd2 {[%clk 0:02:59]}  O-O {[%clk 0:02:58]} 6. Bg2 {[%clk 0:02:59]}  dxc4 {[%clk 0:02:59]} 7. O-O {[%clk 0:02:59]}  b5 {[%clk 0:02:51]} 8. Ne5 {[%clk 0:02:59]}  Nd5 {[%clk 0:02:49]} 9. Qc2 {[%clk 0:02:59]}  Bb7 {[%clk 0:02:47]} 10. b3 {[%clk 0:02:59]}  Bc3 {[%clk 0:02:37]} 11. Rb1 {[%clk 0:02:59]}  Bxd4 {[%clk 0:02:38]} 12. bxc4 {[%clk 0:02:59]}  Bxe5 {[%clk 0:02:37]} 13. cxd5 {[%clk 0:03:00]}  Bxd5 {[%clk 0:02:36]} 14. Rxb5 {[%clk 0:03:00]}  c6 {[%clk 0:02:34]} 15. Rb1 {[%clk 0:02:31]}  Qa5 {[%clk 0:02:35]} 16. a3 {[%clk 0:01:39]}  Qc3 {[%clk 0:02:25]} 17. Rb2 {[%clk 0:01:18]}  Qxc2 {[%clk 0:02:15]} 18. Rxc2 {[%clk 0:01:19]}  f5 {[%clk 0:02:15]} 19. Nc4 {[%clk 0:01:01]}  Bc7 {[%clk 0:02:15]} 20. Ne3 {[%clk 0:00:57]}  Bb6 {[%clk 0:02:14]} 21. Rd1 {[%clk 0:00:44]}  Na6 {[%clk 0:02:03]} 22. Nxd5 {[%clk 0:00:29]}  cxd5 {[%clk 0:02:04]} 23. Rc6 {[%clk 0:00:18]}  Kf7 {[%clk 0:02:03]} 24. Bg5 {[%clk 0:00:16]}  Rfc8 {[%clk 0:02:01]} 25. Rxe6 {[%clk 0:00:09]}  Kxe6 {[%clk 0:01:50]} 26. Bxd5+ {[%clk 0:00:08]}  Ke5 {[%clk 0:01:50]} 27. Kg2 {[%clk 0:00:09]}  f4 {[%clk 0:01:42]} 28. gxf4+ {[%clk 0:00:09]}  Kf5 {[%clk 0:01:42]} 29. e4+ {[%clk 0:00:03]}  Kg6 {[%clk 0:01:42]} 30. h4 {[%clk 0:00:03]}  h6 {[%clk 0:01:40]} 31. f5+ {[%clk 0:00:03]}  Kh7 {[%clk 0:01:40]} 32. Bf4 {[%clk 0:00:03]}  Rd8 {[%clk 0:01:36]} 33. Kf3 {[%clk 0:00:00]}  Nc7 {[%clk 0:01:20]} 0-1


[Site "https://www.chess.com"]

[Event "Titled Tuesday Blitz June 13 Late 2023"]
[White "Maksimovic, Bojan"]
[Black "Vazquez, Guillermo"]
[WhiteFideId "14408120"]
[BlackFideId "3702308"]
[WhiteElo "2457"]
[BlackElo "2543"]
[Result "0-1"]
[Round "7"]
[TimeControl "180+2"]
[Date "2023.06.13"]
[WhiteClock "0:00:05"]
[BlackClock "0:00:15"]
[Board "7"]

1. Nf3 {[%clk 0:03:00]}  d5 {[%clk 0:02:59]} 2. g3 {[%clk 0:03:01]}  Nc6 {[%clk 0:02:59]} 3. Bg2 {[%clk 0:03:00]}  e5 {[%clk 0:02:59]} 4. O-O {[%clk 0:03:00]}  Nf6 {[%clk 0:03:00]} 5. d3 {[%clk 0:03:00]}  Be7 {[%clk 0:03:00]} 6. Nc3 {[%clk 0:03:00]}  O-O {[%clk 0:03:01]} 7. e4 {[%clk 0:03:00]}  dxe4 {[%clk 0:03:01]} 8. Nxe4 {[%clk 0:03:00]}  Nxe4 {[%clk 0:03:01]} 9. dxe4 {[%clk 0:03:01]}  Bc5 {[%clk 0:03:02]} 10. Qe2 {[%clk 0:02:53]}  Qe7 {[%clk 0:03:01]} 11. Be3 {[%clk 0:02:48]}  Be6 {[%clk 0:02:57]} 12. Rfd1 {[%clk 0:02:43]}  f6 {[%clk 0:02:53]} 13. a3 {[%clk 0:02:43]}  a5 {[%clk 0:02:52]} 14. Bf1 {[%clk 0:02:31]}  Rfd8 {[%clk 0:02:47]} 15. h3 {[%clk 0:02:29]}  g6 {[%clk 0:02:44]} 16. Qe1 {[%clk 0:02:22]}  Kg7 {[%clk 0:02:41]} 17. Kh2 {[%clk 0:02:20]}  b6 {[%clk 0:02:07]} 18. Qc3 {[%clk 0:02:08]}  Bxe3 {[%clk 0:01:40]} 19. Qxe3 {[%clk 0:02:09]}  Rd6 {[%clk 0:01:39]} 20. Rxd6 {[%clk 0:01:59]}  Qxd6 {[%clk 0:01:36]} 21. Be2 {[%clk 0:01:59]}  Nd4 {[%clk 0:01:35]} 22. Rd1 {[%clk 0:01:31]}  Nxf3+ {[%clk 0:01:18]} 23. Bxf3 {[%clk 0:01:32]}  Qe7 {[%clk 0:01:15]} 24. Qd2 {[%clk 0:01:25]}  h5 {[%clk 0:01:11]} 25. h4 {[%clk 0:01:22]}  Re8 {[%clk 0:01:08]} 26. Bg2 {[%clk 0:01:22]}  Qc5 {[%clk 0:00:57]} 27. Bh3 {[%clk 0:01:17]}  Bxh3 {[%clk 0:00:53]} 28. Kxh3 {[%clk 0:01:18]}  Re7 {[%clk 0:00:53]} 29. Kg2 {[%clk 0:01:18]}  Qc4 {[%clk 0:00:48]} 30. f3 {[%clk 0:01:11]}  Qc5 {[%clk 0:00:48]} 31. a4 {[%clk 0:01:10]}  b5 {[%clk 0:00:43]} 32. axb5 {[%clk 0:01:01]}  Qxb5 {[%clk 0:00:43]} 33. b3 {[%clk 0:00:49]}  a4 {[%clk 0:00:43]} 34. bxa4 {[%clk 0:00:49]}  Qxa4 {[%clk 0:00:44]} 35. Qd3 {[%clk 0:00:44]}  Qc6 {[%clk 0:00:37]} 36. Rd2 {[%clk 0:00:44]}  Qc5 {[%clk 0:00:36]} 37. Qd8 {[%clk 0:00:42]}  Rf7 {[%clk 0:00:30]} 38. Qd5 {[%clk 0:00:34]}  Qc3 {[%clk 0:00:28]} 39. Qd3 {[%clk 0:00:33]}  Qc5 {[%clk 0:00:29]} 40. Kf1 {[%clk 0:00:32]}  f5 {[%clk 0:00:26]} 41. Kg2 {[%clk 0:00:29]}  f4 {[%clk 0:00:20]} 42. gxf4 {[%clk 0:00:30]}  Rxf4 {[%clk 0:00:20]} 43. Qd7+ {[%clk 0:00:30]}  Rf7 {[%clk 0:00:20]} 44. Qe6 {[%clk 0:00:31]}  Qc3 {[%clk 0:00:18]} 45. Rf2 {[%clk 0:00:28]}  Qc5 {[%clk 0:00:16]} 46. Kg3 {[%clk 0:00:19]}  Qd4 {[%clk 0:00:14]} 47. Qd5 {[%clk 0:00:15]}  Qxd5 {[%clk 0:00:10]} 48. exd5 {[%clk 0:00:16]}  Rf4 {[%clk 0:00:10]} 49. Re2 {[%clk 0:00:13]}  Rc4 {[%clk 0:00:08]} 50. Rxe5 {[%clk 0:00:11]}  Rxc2 {[%clk 0:00:08]} 51. Kf4 {[%clk 0:00:12]}  Kf6 {[%clk 0:00:08]} 52. Re6+ {[%clk 0:00:12]}  Kf7 {[%clk 0:00:09]} 53. Rc6 {[%clk 0:00:10]}  Rxc6 {[%clk 0:00:07]} 54. dxc6 {[%clk 0:00:11]}  Kf6 {[%clk 0:00:08]} 55. Ke4 {[%clk 0:00:04]}  Ke6 {[%clk 0:00:08]} 56. f4 {[%clk 0:00:02]}  Kf6 {[%clk 0:00:08]} 57. Kd5 {[%clk 0:00:02]}  Kf5 {[%clk 0:00:08]} 58. Kc5 {[%clk 0:00:02]}  Kxf4 {[%clk 0:00:08]} 59. Kd4 {[%clk 0:00:02]}  g5 {[%clk 0:00:07]} 60. hxg5 {[%clk 0:00:02]}  Kxg5 {[%clk 0:00:08]} 61. Ke5 {[%clk 0:00:03]}  h4 {[%clk 0:00:09]} 62. Ke6 {[%clk 0:00:04]}  h3 {[%clk 0:00:09]} 63. Kd7 {[%clk 0:00:05]}  h2 {[%clk 0:00:10]} 64. Kxc7 {[%clk 0:00:06]}  h1=Q {[%clk 0:00:11]} 65. Kb7 {[%clk 0:00:05]}  Kf6 {[%clk 0:00:11]} 66. Kb6 {[%clk 0:00:06]}  Qb1+ {[%clk 0:00:11]} 67. Ka7 {[%clk 0:00:06]}  Qa2+ {[%clk 0:00:11]} 68. Kb7 {[%clk 0:00:07]}  Qb3+ {[%clk 0:00:12]} 69. Ka7 {[%clk 0:00:07]}  Qa4+ {[%clk 0:00:13]} 70. Kb7 {[%clk 0:00:08]}  Qb5+ {[%clk 0:00:13]} 71. Kc7 {[%clk 0:00:08]}  Ke7 {[%clk 0:00:13]} 72. Kc8 {[%clk 0:00:08]}  Qxc6+ {[%clk 0:00:13]} 73. Kb8 {[%clk 0:00:08]}  Qd7 {[%clk 0:00:14]} 74. Ka8 {[%clk 0:00:08]}  Kd6 {[%clk 0:00:14]} 75. Kb8 {[%clk 0:00:05]}  Kc6 {[%clk 0:00:15]} 0-1


[Site "https://www.chess.com"]